Workbook

Sheet okres (hidden)
A1: kwartał | B1: =4 -> 4 | C1: =IF(B1="1","I Kwartał",IF(B1="2","II Kwartały",IF(B1="3","III Kwartały",IF(B1="4","IV Kwartały","-")))) -> -
A2: rok | B2: =2015 -> 2015
A3: stanNa | B3: ="May 4 2016 12:00AM" -> May 4 2016 12:00AM
A4: Rok&Kwartał | B4: =B2&B1 -> 20154

Sheet doch_wyd
O1: Dla jednostki: | R1: ="RYMAŃ" -> RYMAŃ
A2: INFORMACJA Z WYKONANIA BUDŻETU GMINY RYMAŃ ZA IV KWARTAŁ 2015 R. | R2: =CONCATENATE("Informacja z wykonania budżetu jednostki samorządu terytorialnego "," za ",$C$69," ",$B$70," roku") -> Informacja z wykonania budżetu jednostki samorządu terytorialnego za IV kwartały 2015 roku
A3: Wyszczególnienie | B3: Plan (po zmianach) | C3: Dochody wykonane (wpływy minus zwroty) | D3: Dochody otrzymane | E3: Obniżenie górnych stawek podatkowych | F3: Ulgi i zwolnienia | G3: Umorzenie zaległości podatkowych | H3: Rozłożenie na raty, odroczenie terminu płatności | I3: Potrącenia | J3: Struktura | K3: Wskaźnik (3:2) | L3: Struktura dochodów bieżących | Q3: ogółem | R3: =IF(D73=1,CONCATENATE(R14," ",R1),"Zbiorczo wg wybranych JST") -> gmina wiejska RYMAŃ | S3: jednostki samorządu terytorialnego
B4: w zł | J4: w %% | Q4: G | R4: =CONCATENATE("Informacja z wykonania budżetów ",S4," za ",$C$69," ",$B$70," roku") -> Informacja z wykonania budżetów gmin za IV kwartały 2015 roku | S4: gmin
A5: 1 | B5: 2 | C5: 3 | D5: 4 | E5: 5 | F5: 6 | G5: 7 | H5: 8 | I5: 9 | J5: 10 | K5: 11 | L5: 12 | Q5: P | R5: =CONCATENATE("Informacja z wykonania budżetów ",S5," za ",$C$69," ",$B$70," roku") -> Informacja z wykonania budżetów powiatów za IV kwartały 2015 roku | S5: powiatów
A6: DOCHODY OGÓŁEM, z tego: | B6: =18854467.33 -> 18854467.33 | C6: =17974110.49 -> 17974110.49 | D6: =17965329.49 -> 17965329.49 | E6: =363132 -> 363132 | F6: =0 -> 0 | G6: =267 -> 267 | H6: =892 -> 892 | I6: =0 -> 0 | J6: =IF($C$6=0,"",100*$C6/$C$6) -> 100 | K6: =IF(B6=0,"",100*C6/B6) -> 95.33077851 | Q6: M | R6: =CONCATENATE("Informacja z wykonania budżetów ",S6," za ",$C$69," ",$B$70," roku") -> Informacja z wykonania budżetów miast na prawach powiatu za IV kwartały 2015 roku | S6: miast na prawach powiatu
A7: Dochody bieżące | B7: =B6-B37 -> 17393494.33 | C7: 16732839.76 | D7: 16724058.76 | E7: 363132 | F7: 0 | G7: 267 | H7: 892 | I7: 0 | J7: 93.09411873 | K7: =IF(B7=0,"",100*C7/B7) -> 96.20171452 | L7: =IF($C$7=0,"",100*$C7/$C$7) -> 100 | Q7: W | R7: =CONCATENATE("Informacja z wykonania budżetów ",S7," za ",$C$69," ",$B$70," roku") -> Informacja z wykonania budżetów województw za IV kwartały 2015 roku | S7: województw
A8: Dochody własne | B8: =B7-B24-B30 -> 10468752.1 | C8: =C7-C24-C30 -> 10033234.83 | D8: =D7-D24-D30 -> 10024453.83 | E8: =E7 -> 363132 | F8: =F7 -> 0 | G8: =G7 -> 267 | H8: =H7 -> 892 | I8: =I7 -> 0 | J8: 55.82048044 | K8: =IF(B8=0,"",100*C8/B8) -> 95.83983587 | L8: 59.96133934
A9: podatek dochodowy od osób fizycznych | B9: =1560380 -> 1560380 | C9: =1574007 -> 1574007 | D9: =1565226 -> 1565226 | E9: =0 -> 0 | F9: =0 -> 0 | G9: =0 -> 0 | H9: =0 -> 0 | I9: =0 -> 0 | J9: 8.757078693 | K9: 100.8733129 | L9: 9.406693798
A10: podatek dochodowy od osób prawnych | B10: =60000 -> 60000 | C10: =22409.34 -> 22409.34 | D10: =22409.34 -> 22409.34 | E10: =0 -> 0 | F10: =0 -> 0 | G10: =0 -> 0 | H10: =0 -> 0 | I10: =0 -> 0 | J10: 0.1246756551 | K10: 37.3489 | L10: 0.1339243089 | Q10: GT | R10: =2 -> 2
A11: podatek rolny | B11: =734503 -> 734503 | C11: =734244.89 -> 734244.89 | D11: =734244.89 -> 734244.89 | E11: =47 -> 47 | F11: =0 -> 0 | G11: =44 -> 44 | H11: =892 -> 892 | I11: =0 -> 0 | J11: 4.085013778 | K11: 99.96485923 | L11: 4.388047101 | Q11: PT | R11: =0 -> 0
A12: podatek od nieruchomości | B12: =3215986 -> 3215986 | C12: =3228901.38 -> 3228901.38 | D12: =3228901.38 -> 3228901.38 | E12: =323874 -> 323874 | F12: =0 -> 0 | G12: =223 -> 223 | H12: =0 -> 0 | I12: =0 -> 0 | J12: 17.96417899 | K12: 100.4015994 | L12: 19.29679257 | Q12: GT&PT | R12: =R10&R11 -> 20
A13: podatek leśny | B13: =186433 -> 186433 | C13: =183180.96 -> 183180.96 | D13: =183180.96 -> 183180.96 | E13: =0 -> 0 | F13: =0 -> 0 | G13: =0 -> 0 | H13: =0 -> 0 | I13: =0 -> 0 | J13: 1.019137832 | K13: 98.25565216 | L13: 1.094739223 | Q13: GT&PT*10 | R13: =IF(R12="Z8",8,R12*10) -> 200
A14: podatek od środków transportowych | B14: =30789 -> 30789 | C14: =37941 -> 37941 | D14: =37941 -> 37941 | E14: =39211 -> 39211 | F14: =0 -> 0 | G14: =0 -> 0 | H14: =0 -> 0 | I14: =0 -> 0 | J14: 0.211086941 | K14: 123.2290753 | L14: 0.226745732 | R14: =IF(R13=0,"samorząd województwa -",IF(R13=10,"powiat",IF(R13=20,"miasto na prawach powiatu -",IF(R13=100,"gmina miejska",IF(R13=200,"gmina wiejska",IF(R13=300,"gmina miejsko-wiejska",IF(R13=8,"",""))))))) -> gmina wiejska
A15: podatek od dział. gosp. osób fizycznych, opłacany w formie karty podatkowej | B15: =500 -> 500 | C15: =0 -> 0 | D15: =0 -> 0 | E15: =0 -> 0 | F15: =0 -> 0 | G15: =0 -> 0 | H15: =0 -> 0 | I15: =0 -> 0 | J15: 0 | K15: 0 | L15: 0 | Q15: 0 | R15: samorząd województwa
A16: podatek od spadków i darowizn | B16: =1000 -> 1000 | C16: =3296 -> 3296 | D16: =3296 -> 3296 | E16: =0 -> 0 | F16: =0 -> 0 | G16: =0 -> 0 | H16: =0 -> 0 | I16: =0 -> 0 | J16: 0.01833748603 | K16: 329.6 | L16: 0.01969779217 | Q16: 10 | R16: powiat
A17: podatek od czynności cywilnoprawnych | B17: =60000 -> 60000 | C17: =89027.32 -> 89027.32 | D17: =89027.32 -> 89027.32 | E17: =0 -> 0 | F17: =0 -> 0 | G17: =0 -> 0 | H17: =0 -> 0 | I17: =0 -> 0 | J17: 0.4953086276 | K17: 148.3788667 | L17: 0.5320514705 | Q17: 20 | R17: miasto na prawach powiatu
A18: wpływy z opłaty skarbowej | B18: =12484 -> 12484 | C18: =9992 -> 9992 | D18: =9992 -> 9992 | E18: =0 -> 0 | F18: =0 -> 0 | G18: =0 -> 0 | H18: =0 -> 0 | I18: =0 -> 0 | J18: 0.05559106808 | K18: 80.03844921 | L18: 0.05971490879 | Q18: 100 | R18: gmina miejska
A19: wpływy z opłaty eksploatacyjnej | B19: =0 -> 0 | C19: =0 -> 0 | D19: =0 -> 0 | E19: =0 -> 0 | F19: =0 -> 0 | G19: =0 -> 0 | H19: =0 -> 0 | I19: =0 -> 0 | J19: 0 | L19: 0 | Q19: 200 | R19: gmina wiejska
A20: wpływy z opłaty targowej | B20: =9728 -> 9728 | C20: =6276 -> 6276 | D20: =6276 -> 6276 | E20: =0 -> 0 | F20: =0 -> 0 | G20: =0 -> 0 | H20: =0 -> 0 | I20: =0 -> 0 | J20: 0.03491688784 | K20: 64.51480263 | L20: 0.03750708242 | Q20: 300 | R20: gmina miejsko-wiejska
A21: wpływy z opłaty komunikacyjnej | B21: =0 -> 0 | C21: =0 -> 0 | D21: =0 -> 0 | E21: =0 -> 0 | F21: =0 -> 0 | G21: =0 -> 0 | H21: =0 -> 0 | I21: =0 -> 0 | J21: 0 | L21: 0
A22: wpływy z usług | B22: =181700 -> 181700 | C22: =148299.35 -> 148299.35 | D22: =148299.35 -> 148299.35 | E22: =0 -> 0 | F22: =0 -> 0 | G22: =0 -> 0 | H22: =0 -> 0 | I22: =0 -> 0 | J22: 0.8250719839 | K22: 81.617694 | L22: 0.8862772376
A23: pozostałe dochody | B23: =B8-SUM(B9:B22) -> 4415249.1 | C23: =C8-SUM(C9:C22) -> 3995659.59 | D23: 3995659.59 | E23: 0 | F23: 0 | G23: 0 | H23: 0 | I23: 0 | J23: 22.2300825 | K23: 90.49681002 | L23: 23.87914811
A24: Dotacje celowe na zadania bieżące | B24: =B25+B26+B27+B28+B29 -> 3005492.23 | C24: =C25+C26+C27+C28+C29 -> 2780354.93 | D24: =D25+D26+D27+D28+D29 -> 2780354.93 | E24: # | F24: # | G24: # | H24: # | I24: # | J24: 15.46866495 | K24: =IF(B24=0,"",100*C24/B24) -> 92.50913718 | L24: 16.61615703
A25: na zadania z zakresu adm. rządowej | B25: =2072949.8 -> 2072949.8 | C25: =1904357.08 -> 1904357.08 | D25: =1904357.08 -> 1904357.08 | E25: # | F25: # | G25: # | H25: # | I25: # | J25: 10.59500041 | K25: 91.86701386 | L25: 11.3809557
A26: na zadania własne | B26: =932542.43 -> 932542.43 | C26: =875997.85 -> 875997.85 | D26: =875997.85 -> 875997.85 | E26: # | F26: # | G26: # | H26: # | I26: # | J26: 4.873664544 | K26: 93.93651397 | L26: 5.235201332
A27: na zadania realizowane na podstawie porozumień z org. adm. rządowej | B27: =0 -> 0 | C27: =0 -> 0 | D27: =0 -> 0 | E27: # | F27: # | G27: # | H27: # | I27: # | J27: 0 | L27: 0
A28: na zadania realizowane na podstawie porozumień między jst | B28: =0 -> 0 | C28: =0 -> 0 | D28: =0 -> 0 | E28: # | F28: # | G28: # | H28: # | I28: # | J28: 0 | L28: 0
A29: otrzymane z funduszy celowych | B29: =0 -> 0 | C29: =0 -> 0 | D29: =0 -> 0 | E29: # | F29: # | G29: # | H29: # | I29: # | J29: 0 | L29: 0
A30: Subwencja ogólna | B30: =B31+B32+B33+B34+B35+B36 -> 3919250 | C30: =C31+C32+C33+C34+C35+C36 -> 3919250 | D30: =D31+D32+D33+D34+D35+D36 -> 3919250 | E30: # | F30: # | G30: # | H30: # | I30: # | J30: 21.80497334 | K30: 100 | L30: 23.42250363
A31: część wyrównawcza | B31: =771719 -> 771719 | C31: =771719 -> 771719 | D31: =771719 -> 771719 | E31: # | F31: # | G31: # | H31: # | I31: # | J31: 4.29350315 | K31: 100 | L31: 4.612002571
A32: część oświatowa | B32: =3078489 -> 3078489 | C32: =3078489 -> 3078489 | D32: =3078489 -> 3078489 | E32: # | F32: # | G32: # | H32: # | I32: # | J32: 17.12735104 | K32: 100 | L32: 18.39788729
A33: część rekompensująca | B33: =0 -> 0 | C33: =0 -> 0 | D33: =0 -> 0 | E33: # | F33: # | G33: # | H33: # | I33: # | J33: 0 | L33: 0
A34: część równoważąca | B34: =69042 -> 69042 | C34: =69042 -> 69042 | D34: =69042 -> 69042 | E34: # | F34: # | G34: # | H34: # | I34: # | J34: 0.3841191476 | K34: 100 | L34: 0.4126137643
A35: część regionalna | B35: =0 -> 0 | C35: =0 -> 0 | D35: =0 -> 0 | E35: # | F35: # | G35: # | H35: # | I35: # | J35: 0 | L35: 0
A36: uzupełnienie subwencji ogólnej | B36: =0 -> 0 | C36: =0 -> 0 | D36: =0 -> 0 | E36: # | F36: # | G36: # | H36: # | I36: # | J36: 0 | L36: 0
A37: Dochody majątkowe | B37: =SUM(B38,B45,B47) -> 1460973 | C37: =SUM(C38,C45,C47) -> 1241270.73 | D37: =SUM(D38,D45,D47) -> 1241270.73 | E37: =SUM(E45:E47) -> 0 | F37: =SUM(F45:F47) -> 0 | G37: =SUM(G45:G47) -> 0 | H37: =SUM(H45:H47) -> 0 | I37: =SUM(I45:I47) -> 0 | J37: 6.905881271 | K37: =IF(B37=0,"",100*C37/B37) -> 84.96192127
A38: Dotacje celowe na zadania inwestycyjne | B38: =SUM(B39:B44) -> 0 | C38: =SUM(C39:C44) -> 0 | D38: =SUM(D39:D44) -> 0 | E38: # | F38: # | G38: # | H38: # | I38: # | J38: 0
A39: na zadania z zakresu adm. rządowej | B39: =0 -> 0 | C39: =0 -> 0 | D39: =0 -> 0 | E39: # | F39: # | G39: # | H39: # | I39: # | J39: =IF($C$6=0,"",100*$C39/$C$6) -> 0
A40: na zadania własne | B40: =0 -> 0 | C40: =0 -> 0 | D40: =0 -> 0 | E40: # | F40: # | G40: # | H40: # | I40: # | J40: 0
A41: na zadania realizowane na podstawie porozumień z org. adm. rządowej | B41: =0 -> 0 | C41: =0 -> 0 | D41: =0 -> 0 | E41: # | F41: # | G41: # | H41: # | I41: # | J41: 0
A42: na zadania realizowane na podstawie porozumień między jst | B42: =0 -> 0 | C42: =0 -> 0 | D42: =0 -> 0 | E42: # | F42: # | G42: # | H42: # | I42: # | J42: 0
A43: otrzymane z funduszy celowych | B43: =0 -> 0 | C43: =0 -> 0 | D43: =0 -> 0 | E43: # | F43: # | G43: # | H43: # | I43: # | J43: 0 | K43: =IF(B43=0,"",100*C43/B43) -> 
A44: pozostałe | B44: =0 -> 0 | C44: =0 -> 0 | D44: =0 -> 0 | E44: # | F44: # | G44: # | H44: # | I44: # | J44: 0 | K44: =IF(B44=0,"",100*C44/B44) -> 
A45: Środki na inwestycje uzyskane z innych źródeł | B45: =1260973 -> 1260973 | C45: =1198793.57 -> 1198793.57 | D45: =1198793.57 -> 1198793.57 | E45: =0 -> 0 | F45: =0 -> 0 | G45: =0 -> 0 | H45: =0 -> 0 | I45: =0 -> 0 | J45: 6.669557143 | K45: 95.06893248
A46: Środki pochodzące z funduszy strukturalnych i Funduszu Spójności UE | B46: =0 -> 0 | C46: =0 -> 0 | D46: =0 -> 0 | E46: =0 -> 0 | F46: =0 -> 0 | G46: =0 -> 0 | H46: =0 -> 0 | I46: =0 -> 0 | J46: 0 | K46: =IF(B46=0,"",100*C46/B46) -> 
A47: Dochody ze sprzedaży majątku | B47: =200000 -> 200000 | C47: =42477.16 -> 42477.16 | D47: =42477.16 -> 42477.16 | E47: =0 -> 0 | F47: =0 -> 0 | G47: =0 -> 0 | H47: =0 -> 0 | I47: =0 -> 0 | J47: 0.2363241287 | K47: 21.23858
A48: =A1 -> 0
A49: =+A2 -> INFORMACJA Z WYKONANIA BUDŻETU GMINY RYMAŃ ZA IV KWARTAŁ 2015 R.
A50: Wyszczególnienie | B50: Plan (po zmianach) | C50: Zaangażowanie | D50: Wydatki wykonane | E50: Zobowiązania wg stanu na koniec okresu sprawozdawczego | H50: Wydatki, które nie wygasły z upływem roku budżetowego2) (art.191 ust. 2 i ust. 3 ustawy o finansach publicznych) | J50: Struktura | K50: Wskaźnik (4:2)
E51: ogółem | F51: w tym wymagalne:
F52: powstałe w latach ubiegłych | G52: powstałe w roku bieżącym
B53: w zł | J53: w %%
A54: 1 | B54: 2 | C54: 3 | D54: 4 | E54: 5 | F54: 6 | G54: 7 | H54: 8 | J54: 9 | K54: 10
A55: WYDATKI OGÓŁEM z tego: | B55: =17470884.33 -> 17470884.33 | C55: =16511980.49 -> 16511980.49 | D55: =16511980.49 -> 16511980.49 | E55: =984642.83 -> 984642.83 | F55: =0 -> 0 | G55: =0 -> 0 | H55: =0 -> 0 | J55: =IF($D$55=0,"",100*$D55/$D$55) -> 100 | K55: =IF(B55=0,"",100*D55/B55) -> 94.51141784
A56: Wydatki bieżące z tego: | B56: =B55-B62 -> 16491972.33 | C56: 15542713.58 | D56: 15542713.58 | E56: 833588.02 | F56: 0 | G56: 0 | H56: 0 | J56: 94.1299173 | K56: 94.24411628
A57: wynagrodzenia i pochodne od wynagrodzeń | B57: =6300819.85 -> 6300819.85 | C57: =6073933.95 -> 6073933.95 | D57: =6073933.95 -> 6073933.95 | E57: =620903.29 -> 620903.29 | F57: =0 -> 0 | G57: =0 -> 0 | H57: =0 -> 0 | J57: 36.78501167 | K57: 96.39910511
A58: dotacje | B58: =1008484.5 -> 1008484.5 | C58: =1006776.17 -> 1006776.17 | D58: =1006776.17 -> 1006776.17 | E58: =18870 -> 18870 | F58: =0 -> 0 | G58: =0 -> 0 | H58: =0 -> 0 | J58: 6.097246606 | K58: 99.83060424
A59: obsługa długu | B59: =320760 -> 320760 | C59: =252425.81 -> 252425.81 | D59: =252425.81 -> 252425.81 | E59: =0 -> 0 | F59: =0 -> 0 | G59: =0 -> 0 | H59: =0 -> 0 | J59: 1.528743388 | K59: =IF(B59=0,"",100*D59/B59) -> 78.69616224
A60: poręczenia i gwarancje | B60: =0 -> 0 | C60: =0 -> 0 | D60: =0 -> 0 | E60: =0 -> 0 | F60: =0 -> 0 | G60: =0 -> 0 | H60: =0 -> 0 | J60: =IF($D$55=0,"",100*$D60/$D$55) -> 0 | K60: =IF(B60=0,"",100*D60/B60) -> 
A61: pozostałe wydatki bieżące | B61: =B56-SUM(B57:B60) -> 8861907.98 | C61: 8209577.65 | D61: 8209577.65 | E61: 193814.73 | F61: 0 | G61: 0 | H61: 0 | J61: 49.71891564 | K61: 92.63894038
A62: Wydatki majątkowe | B62: =978912 -> 978912 | C62: =969266.91 -> 969266.91 | D62: =969266.91 -> 969266.91 | E62: =151054.81 -> 151054.81 | F62: =0 -> 0 | G62: =0 -> 0 | H62: =0 -> 0 | J62: =IF($D$55=0,"",100*$D62/$D$55) -> 5.870082699 | K62: =IF(B62=0,"",100*D62/B62) -> 99.01471327
A64: WYNIK OGÓŁEM (Dochody ogółem - Wydatki ogółem) | B64: =B6-B55 -> 1383583 | D64: =C6-D55 -> 1462130
A65: WYNIK BIEŻĄCY (Dochody bieżące - Wydatki bieżące) | B65: =B7-B56 -> 901522 | D65: =C7-D56 -> 1190126.18
A66: WYNIK MAJĄTKOWY (Dochody majątkowe - Wydatki majątkowe) | B66: =B37-B62 -> 482061 | D66: =C37-D62 -> 272003.82
A69: kwartał | B69: =4 -> 4 | C69: =IF(B69=1,"I kwartał",IF(B69=2,"II kwartały",IF(B69=3,"III kwartały",IF(B69=4,"IV kwartały","-")))) -> IV kwartały
A70: rok | B70: =2015 -> 2015
A71: stanNa | B71: ="May 4 2016 12:00AM" -> May 4 2016 12:00AM
A73: Nazwa | B73: KodGUS | D73: =IF(COUNTA(B74:B77)=1,1,0) -> 1
A74: RYMAŃ | B74: 3208052

Sheet rysunki

Sheet definicja
B1: =CONCATENATE("Informacja z wykonania budżetów jednostek samorządu terytorialnego za ",okres!$C$1," ",okres!$B$2," roku") -> Informacja z wykonania budżetów jednostek samorządu terytorialnego za - 2015 roku
B3: Wyszczególnienie | C3: Plan (po zmianach) R1 | D3: Dochody wykonane (wpływy minus zwroty) R4 | E3: Dochody otrzymane R9 | F3: Obniżenie górnych stawek podatkowych R7 | G3: Ulgi i zwolnienia R8 | H3: Umorzenie zaległości podatkowych R11Z | I3: Rozłożenie na raty, odroczenie terminu płatności R11R | J3: Potrącenia R3
C4: PL | D4: DW | E4: DO | F4: SO | G4: SU | H4: UZ | I4: OT | J4: PO
B5: 1 | C5: 2 | D5: 3 | E5: 4 | F5: 5 | G5: 6 | H5: 7 | I5: 8 | J5: 9
A6: A | B6: DOCHODY OGÓŁEM | C6: A = Σ §§
A7: A1 | B7: Razem dochody własne z tego: | C7: A1=A-A16-A27
A8: A2 | B8: podatek dochodowy od osób prawnych | C8: paragraf zawiera(002)
A9: A3 | B9: podatek dochodowy od osób fizycznych | C9: paragraf zawiera(001)
A10: A4 | B10: podatek rolny | C10: paragraf zawiera(032)
A11: A5 | B11: podatek od nieruchomości | C11: paragraf zawiera(031)
A12: A6 | B12: podatek leśny | C12: paragraf zawiera(033)
A13: A7 | B13: podatek od środków transportowych | C13: paragraf zawiera(034)
A14: A8 | B14: podatek od dział. gosp. osób fizycznych, opłacany w formie karty podatkowej | C14: paragraf zawiera(035)
A15: A9 | B15: podatek od spadków i darowizn | C15: paragraf zawiera(036)
A16: A10 | B16: podatek od czynności cywilnoprawnych | C16: paragraf zawiera(050)
A17: A11 | B17: wpływy z opłaty skarbowej | C17: paragraf zawiera(041)
A18: A12 | B18: wpływy z opłaty eksploatacyjnej | C18: paragraf zawiera(046)
A19: A13 | B19: wpływy z opłaty targowej | C19: paragraf zawiera(043)
B20: wpływy z opłaty komunikacyjnej | C20: paragraf zawiera(042)
B21: wpływy z usług | C21: paragraf zawiera(083)
A22: A15 | B22: pozostałe dochody | C22: A15=A1-A2-A3-A4-A5-A6-A7-A8-A9-A10-A11-A12-A13-A14
A23: A16 | B23: Dotacje celowe z tego: | C23: A16=A17+A19+A21+A23+A25
A24: A17 | B24: na zadania z zakresu adm. rządowej | C24: paragraf zawiera(201,211,221)
A25: A19 | B25: na zadania własne | C25: paragraf zawiera(200,203,213,223)
A26: A21 | B26: na zadania realizowane na podstawie porozumień z org. adm. rządowej | C26: paragraf zawiera(202,212,222)
A27: A23 | B27: na zadania realizowane na podstawie porozumień między jst | C27: paragraf zawiera(231,232,233,288)
A28: A25 | B28: otrzymane z funduszy celowych | C28: paragraf zawiera(244)
A29: A27 | B29: Subwencja ogólna z tego: | C29: A27=A28+A29+A30+A31+A32+A33
A30: A28 | B30: część wyrównawcza | C30: paragraf zawiera(292) i dzial zawiera(758) i rozdzial zawiera(75803,75804,75807)
A31: A29 | B31: część oświatowa | C31: paragraf zawiera(292) i dzial zawiera(758) i rozdzial zawiera(75801)
A32: A30 | B32: część rekompensująca | C32: paragraf zawiera(292) i dzial zawiera(758) i rozdzial zawiera(75805)
A33: A31 | B33: część równoważąca | C33: paragraf zawiera(292) i dzial zawiera(758) i rozdzial zawiera(75831,75832)
A34: A32 | B34: część regionalna | C34: paragraf zawiera(292) i dzial zawiera(758) i rozdzial zawiera(75833)
A35: A33 | B35: uzupełnienie subwencji ogólnej | C35: paragraf zawiera(275,276,277,278,279) i dzial zawiera(758) i rozdzial zawiera(75802)
B36: Dochody majątkowe, z tego:
B37: Dotacje celowe z tego:
B38: na zadania z zakresu adm. rządowej | C38: paragraf zawiera(631,641,651)
B39: na zadania własne | C39: paragraf zawiera(273,633,643,653)
B40: na zadania realizowane na podstawie porozumień z org. adm. rządowej | C40: paragraf zawiera(632,642,652)
B41: na zadania realizowane na podstawie porozumień między jst | C41: paragraf zawiera(661,662,663,664)
B42: otrzymane z funduszy celowych | C42: paragraf zawiera(626)
B43: pozostałe | C43: paragraf zawiera(618,622)
B44: Środki na inwestycje uzyskane z innych źródeł, w tym: | C44: paragraf zawiera(620,628,629,630,665)
B45: Środki pochodzące z funduszy strukturalnych i Funduszu Spójności UE | C45: paragraf zawiera(620,628,629,630,665) i FinPar zawiera(1,8)
A46: A14 | B46: dochody z majątku | C46: paragraf zawiera(076,077,078,087)
B58: =CONCATENATE("Informacja z wykonania budżetów jednostek samorządu terytorialnego za ",okres!$C$1," ",okres!$B$2," roku") -> Informacja z wykonania budżetów jednostek samorządu terytorialnego za - 2015 roku
B60: Wyszczególnienie | C60: Plan (po zmianach) R1 | D60: Zaangażowanie R10 | E60: Wydatki wykonane R4 | F60: Zobowiązania wg stanu na koniec okresu sprawozdawczego | I60: Wydatki, które nie wygasły z upływem roku budżetowego2) (art.191 ust. 2 i ust. 3 ustawy o finansach publicznych) R9
F61: ogółem R11 | G61: w tym wymagalne:
G62: powstałe w latach ubiegłych R12U | H62: powstałe w roku bieżącym R12B
C63: PL | D63: ZA | E63: WW | F63: ZO | G63: LU | H63: RB | I63: WN
B64: 1 | C64: 2 | D64: 3 | E64: 4 | F64: 5 | G64: 6 | H64: 7 | I64: 8
A65: B | B65: WYDATKI OGÓŁEM z tego: | C65: B=Σ§§
A66: B1 | B66: wydatki majątkowe | C66: paragraf like '6%' | K66: zawiera(601,602,603,605,606,607,608,611,612,613,614,615,616,617,618,620,621,622,623,624,626,627,628,629,630,631,632,633,641,642,643,651,652,653,661,662,663,664,665,680)
A67: B2 | B67: w tym: wydatki na inwestycje i zakupy inwestycyjne | C67: paragraf zawiera(605,606)
A68: B3 | B68: wydatki bieżące z tego: | C68: B3=B-B1
A69: B4 | B69: wydatki na wynagrodzenia i pochodne od wynagrodzeń | C69: paragraf zawiera(401,402,403,404,405,406,407,408,409,410,411,412,417)
A70: B5 | B70: w tym: wynagrodzenia osobowe | C70: paragraf zawiera(401,402,405)
A71: B6 | B71: pochodne od wynagrodzeń | C71: paragraf zawiera(411,412)
A72: B7 | B72: dotacje | C72: paragraf zawiera(200,231,232,233,241,242,243,248,249,250,251,252,253,254,255,256,257,258,259,260,262,263,265,266,267,271,272,273,280,281,282,283,288)
A73: B8 | B73: wydatki na obsługę długu | C73: paragraf zawiera(801,806,807,810,811,812,813)
A74: B9 | B74: poręczenia i gwarancje | C74: paragraf zawiera(802)
A75: B10 | B75: świadczenia społeczne | C75: paragraf=311
A76: C | B76: WYNIK | C76: C=A-B
